bitfinex/quotes_BTCUSD_20240613
["timestamp","ask_amount","ask_price","bid_price","bid_amount"]
[1718322161034,0.16477485,66841.0,66840.0,0.01885]
[1718322162830,0.17477485,66841.0,66840.0,0.01885]
[1718322163250,0.16477485,66841.0,66840.0,0.01885]
[1718322163463,0.17477485,66841.0,66840.0,0.01885]
[1718322165976,0.17477485,66841.0,66840.0,0.04155387]
[1718322166167,0.17477485,66841.0,66840.0,0.01885]
[1718322166372,0.17477485,66841.0,66840.0,0.04155387]
[1718322175577,0.31909478,66841.0,66840.0,0.04155387]
[1718322175819,0.5307554,66841.0,66840.0,0.04155387]
[1718322176005,0.89591049,66841.0,66840.0,0.04155387]
[1718322176208,1.08698044,66841.0,66840.0,0.01885]
[1718322176584,1.1989487,66841.0,66840.0,0.01885]
[1718322176791,1.08598044,66841.0,66840.0,0.01085]
[1718322177188,1.08680038,66841.0,66840.0,0.01885]
[1718322177899,1.08720812,66841.0,66840.0,0.01885]
[1718322178097,1.15432611,66841.0,66840.0,0.00885]
[1718322178313,1.17673317,66841.0,66840.0,0.00885]
[1718322178520,1.08720812,66841.0,66840.0,0.00885]
[1718322178968,1.08820812,66841.0,66840.0,0.00885]
[1718322179308,1.08720812,66841.0,66840.0,0.00085]
[1718322179440,1.08820812,66841.0,66840.0,0.00085]
[1718322180889,1.13292648,66841.0,66840.0,0.00085]
[1718322181115,1.08820812,66841.0,66840.0,0.00085]
[1718322181324,1.13291588,66841.0,66840.0,0.00085]
[1718322181539,1.08820812,66841.0,66840.0,0.00085]
[1718322181745,0.09535978,66825.0,66817.0,0.07215996]
[1718322181890,0.22967971,66825.0,66816.0,0.00855]
[1718322182933,0.22967971,66825.0,66824.0,0.00885]
[1718322182934,0.23067971,66825.0,66824.0,0.00885]
[1718322183294,0.16477971,66825.0,66824.0,0.01885]
[1718322183910,0.16477971,66825.0,66824.0,0.0378279]
[1718322184111,0.16477971,66825.0,66824.0,0.01885]
[1718322184291,0.16477971,66825.0,66824.0,0.0378279]
[1718322184517,0.16477971,66825.0,66824.0,0.01885]
[1718322184668,0.16477971,66825.0,66824.0,0.0378279]
[1718322184868,0.16477971,66825.0,66824.0,0.01885]
[1718322185091,0.16477971,66825.0,66824.0,0.0378279]
[1718322185289,0.16477971,66825.0,66824.0,0.01885]
[1718322185486,0.16477971,66825.0,66824.0,0.0378279]
[1718322185647,0.16477971,66825.0,66824.0,0.01885]
[1718322185848,0.16477971,66825.0,66824.0,0.0378279]
[1718322187020,0.17477971,66825.0,66824.0,0.0378279]
[1718322187716,0.16477971,66825.0,66824.0,0.0378279]
[1718322191628,0.17477971,66825.0,66824.0,0.0378279]
[1718322191838,0.17477971,66825.0,66824.0,0.01885]
[1718322192038,0.17477971,66825.0,66824.0,0.0379066]
[1718322192248,0.17477971,66825.0,66824.0,0.01885]
[1718322192450,0.17477971,66825.0,66824.0,0.0379066]
[1718322192604,0.17477971,66825.0,66824.0,0.01885]
[1718322192809,0.17477971,66825.0,66824.0,0.0379066]
[1718322193013,0.17477971,66825.0,66824.0,0.01885]
[1718322193216,0.17477971,66825.0,66824.0,0.0379066]
[1718322193405,0.17477971,66825.0,66824.0,0.01885]
[1718322193606,0.17477971,66825.0,66824.0,0.0379066]
[1718322193838,0.17477971,66825.0,66824.0,0.01885]
[1718322194047,0.17477971,66825.0,66824.0,0.0379066]
[1718322194245,0.17477971,66825.0,66824.0,0.01885]
[1718322194474,0.17477971,66825.0,66824.0,0.0379066]
[1718322194642,0.17477971,66825.0,66824.0,0.01885]
[1718322194850,0.17477971,66825.0,66824.0,0.0379066]
[1718322195083,0.17477971,66825.0,66824.0,0.01885]
[1718322195292,0.17477971,66825.0,66824.0,0.0379066]
[1718322195493,0.16477971,66825.0,66824.0,0.01885]
[1718322195746,0.16477971,66825.0,66824.0,0.0379066]
[1718322195896,0.16477971,66825.0,66824.0,0.01885]
[1718322196369,0.16477971,66825.0,66824.0,0.0379066]
[1718322200821,0.17477971,66825.0,66824.0,0.0379066]
[1718322204361,0.16477971,66825.0,66824.0,0.0379066]
[1718322213064,0.16477971,66825.0,66824.0,0.1379066]
[1718322213665,0.02045978,66825.0,66824.0,0.2787066]
[1718322219207,0.02045978,66825.0,66824.0,0.32350333]
[1718322220312,0.02045978,66825.0,66824.0,0.2787066]
[1718322220701,0.001,66825.0,66824.0,0.2787066]
[1718322221172,0.001,66825.0,66824.0,0.55664819]
[1718322221390,0.001,66825.0,66824.0,0.55647099]
[1718322222468,0.001,66825.0,66824.0,0.3459017]
[1718322223415,0.001,66825.0,66824.0,0.2787066]
[1718322224131,0.001,66825.0,66824.0,0.3459017]
[1718322224341,0.001,66825.0,66824.0,0.2787066]
[1718322226931,0.02045978,66825.0,66824.0,0.32353664]
[1718322227379,0.02045978,66825.0,66824.0,0.2787066]
[1718322229370,0.001,66825.0,66824.0,0.32353109]
[1718322229595,0.001,66825.0,66824.0,0.2787066]
[1718322230684,0.001,66825.0,66824.0,0.32353042]
[1718322231132,0.001,66825.0,66824.0,0.32352986]
[1718322231345,0.001,66825.0,66824.0,0.32353022]
[1718322231562,0.001,66825.0,66824.0,0.2787066]
[1718322235077,0.001,66825.0,66824.0,0.32352569]
[1718322235523,0.001,66825.0,66824.0,0.2787066]
[1718322235750,0.001,66825.0,66824.0,0.3017066]
[1718322236450,0.001,66825.0,66824.0,0.5786281]
[1718322236668,0.001,66825.0,66824.0,0.6497281]
[1718322236903,0.02045978,66825.0,66824.0,0.67484125]
[1718322237109,0.001,66825.0,66824.0,0.74594125]
[1718322237793,0.001,66825.0,66824.0,0.67484125]
[1718322238015,0.02045978,66825.0,66824.0,0.74594125]
[1718322238428,0.02045978,66825.0,66824.0,0.81316067]
[1718322238887,0.001,66825.0,66824.0,0.81316067]
[1718322239263,0.02045978,66825.0,66824.0,0.81316067]
[1718322240101,0.001,66825.0,66824.0,0.81316067]
[1718322240280,0.001,66825.0,66824.0,0.3728066]
[1718322240472,0.001,66825.0,66824.0,0.41762059]
[1718322241119,0.02045978,66825.0,66824.0,0.41762059]
[1718322241545,0.02045978,66825.0,66824.0,0.3728066]
[1718322242599,0.02045978,66825.0,66824.0,0.3017066]
[1718322243885,0.02045978,66825.0,66824.0,0.1379066]
[1718322262641,0.03045978,66825.0,66824.0,0.1379066]
[1718322263262,0.02045978,66825.0,66824.0,0.1379066]
[1718322264620,0.03045978,66825.0,66824.0,0.1379066]
[1718322266071,0.02045978,66825.0,66824.0,0.1379066]
[1718322270096,0.02027971,66825.0,66824.0,0.1379066]
[1718322277518,0.02027971,66825.0,66824.0,0.2170066]
[1718322277519,0.00081993,66825.0,66824.0,0.2170066]
[1718322277726,0.00081993,66825.0,66824.0,0.26185231]
[1718322277964,0.00081993,66825.0,66824.0,0.2170066]
[1718322278400,0.02027971,66825.0,66824.0,0.2170066]
[1718322280559,0.02027971,66825.0,66824.0,0.1379066]
[1718322280761,0.02027971,66825.0,66824.0,0.2779066]
[1718322281413,0.02027971,66825.0,66824.0,0.32276113]
[1718322281794,0.02027971,66825.0,66824.0,0.2779066]
[1718322283726,0.02027971,66825.0,66824.0,0.32276113]
[1718322284141,0.02027971,66825.0,66824.0,0.2779066]
[1718322284505,0.02027971,66825.0,66824.0,0.32276934]
[1718322286991,0.02027971,66825.0,66824.0,0.2779066]
[1718322288187,0.02027971,66825.0,66824.0,0.32278618]
[1718322288983,0.02027971,66825.0,66824.0,0.2779066]
[1718322289180,0.02027971,66825.0,66824.0,0.32278618]
[1718322289564,0.02027971,66825.0,66824.0,0.32279435]
[1718322290341,0.02027971,66825.0,66824.0,0.2779066]
[1718322290683,0.02027971,66825.0,66824.0,0.32279435]
[1718322290960,0.02027971,66825.0,66824.0,0.18279435]
[1718322291160,0.02027971,66825.0,66824.0,0.1379066]
[1718322293586,0.02027971,66825.0,66824.0,0.18279435]
[1718322294810,0.02027971,66825.0,66824.0,0.1379066]
[1718322295879,0.02027971,66825.0,66824.0,0.18279435]
[1718322297442,0.02027971,66825.0,66824.0,0.1379066]
[1718322298567,0.02027971,66825.0,66824.0,0.18279482]
[1718322301977,0.02027971,66825.0,66824.0,0.1379066]
[1718322302180,0.02027971,66825.0,66824.0,0.18279482]
[1718322302968,0.02027971,66825.0,66824.0,0.1379066]
[1718322303378,0.02027971,66825.0,66824.0,0.18279482]
[1718322304636,0.02027971,66825.0,66824.0,0.24499482]
[1718322304841,0.00081993,66825.0,66824.0,0.32279482]
[1718322305065,0.00081993,66825.0,66824.0,0.36823894]
[1718322305290,0.00081993,66825.0,66824.0,0.5164434]
[1718322305723,0.00081993,66825.0,66824.0,0.58860336]
[1718322305938,0.00081993,66825.0,66824.0,0.65875135]
[1718322306574,0.00081993,66825.0,66824.0,0.88151907]
[1718322307730,0.49225978,66837.0,66829.0,0.061]
[1718322307944,0.49225978,66837.0,66834.0,0.0807]
[1718322308286,0.4728,66837.0,66834.0,0.1417]
[1718322308486,0.4728,66837.0,66835.0,0.01987564]
[1718322308949,0.4738,66837.0,66835.0,0.01987564]
[1718322309311,0.4738,66837.0,66836.0,0.0711]
[1718322309521,0.00093501,66840.0,66836.0,0.2122]
[1718322309716,0.00093501,66840.0,66836.0,0.23275275]
[1718322311905,0.00093501,66840.0,66836.0,0.23975275]
[1718322312117,0.01945978,66839.0,66836.0,0.16865275]
[1718322312325,0.00093501,66840.0,66836.0,0.16865275]
[1718322312326,0.01945978,66838.0,66836.0,0.17865275]
[1718322312566,0.02039479,66840.0,66836.0,0.17165275]
[1718322312796,0.00093501,66840.0,66836.0,0.16165275]
[1718322313007,0.00093501,66840.0,66836.0,0.17165275]
[1718322314175,0.00093501,66840.0,66836.0,0.16865275]
[1718322314376,0.00093501,66840.0,66837.0,0.0752]
[1718322314575,0.01945978,66839.0,66837.0,0.0957507]
[1718322315430,0.00093501,66840.0,66838.0,0.0752]
[1718322315637,0.00093501,66840.0,66839.0,0.0634]
[1718322315806,0.00093501,66840.0,66839.0,0.0839466]
[1718322317728,0.00093501,66840.0,66839.0,0.0939466]
[1718322318536,0.00093501,66840.0,66839.0,0.1009466]
[1718322331024,0.00093501,66840.0,66839.0,0.1239466]
[1718322333523,0.00093501,66840.0,66839.0,0.2038466]
[1718322334211,0.00093501,66840.0,66839.0,0.26211909]
[1718322334904,0.00093501,66840.0,66839.0,0.4609688]
[1718322335136,0.00093501,66840.0,66839.0,0.53312876]
[1718322335368,0.00093501,66840.0,66839.0,0.96552537]
[1718322335796,0.00093501,66840.0,66839.0,0.95852537]
[1718322336044,0.00093501,66840.0,66839.0,0.94852537]
[1718322336531,0.00093501,66840.0,66839.0,0.9584171]
[1718322337324,0.00093501,66840.0,66839.0,0.69722876]
[1718322337552,0.00093501,66840.0,66839.0,0.76431792]
[1718322338380,0.00093501,66840.0,66839.0,0.69722876]
[1718322343034,0.00093501,66840.0,66839.0,0.69717665]
[1718322345465,0.00093501,66840.0,66839.0,0.62571649]
[1718322345668,0.00093501,66840.0,66839.0,0.69681649]
[1718322345869,0.00093501,66840.0,66839.0,0.69717665]
[1718322346479,0.00093501,66840.0,66839.0,0.69681649]
[1718322347468,0.00093501,66840.0,66839.0,0.76387941]
[1718322347648,0.00093501,66840.0,66839.0,0.76423957]
[1718322348268,0.00093501,66840.0,66839.0,0.95829433]
[1718322349313,0.00093501,66840.0,66839.0,0.89123141]
[1718322350692,0.00093501,66840.0,66839.0,0.98064864]
[1718322352020,0.00093501,66840.0,66839.0,0.98081432]
[1718322352248,0.00093501,66840.0,66839.0,0.98045416]
[1718322352471,0.00093501,66840.0,66839.0,0.89094686]
[1718322354462,0.00093501,66840.0,66839.0,0.89130702]
[1718322356307,0.00093501,66840.0,66839.0,0.90889682]
[1718322356975,0.00093501,66840.0,66839.0,0.83743666]
[1718322357194,0.00093501,66840.0,66839.0,0.90853666]
[1718322357722,0.00093501,66840.0,66839.0,0.90889682]
[1718322359678,0.00093501,66840.0,66839.0,0.94932078]
[1718322359910,0.00093501,66840.0,66839.0,0.90853666]
[1718322360380,0.13783501,66840.0,66839.0,0.6219767]
[1718322360612,0.15729479,66840.0,66839.0,0.18840682]
[1718322361112,0.15729479,66840.0,66839.0,0.08840682]
[1718322361336,0.16729479,66840.0,66839.0,0.0305466]
[1718322362269,0.16729479,66840.0,66839.0,0.0235466]
[1718322362493,0.23839479,66840.0,66839.0,0.0305466]
[1718322362718,0.23839479,66840.0,66839.0,0.01]
[1718322362990,0.23839479,66840.0,66839.0,0.003]
[1718322363427,0.23839479,66840.0,66826.0,0.04477753]
[1718322363428,0.01945978,66827.0,66826.0,0.04477753]
[1718322363651,0.01945978,66827.0,66826.0,0.05776415]
[1718322363875,0.01945978,66827.0,66825.0,0.00086]
[1718322364084,0.01945978,66826.0,66825.0,0.00086]
[1718322364743,0.01945978,66826.0,66825.0,0.02386]
[1718322366074,0.01945978,66826.0,66825.0,0.05133986]
[1718322366878,0.16525978,66828.0,66825.0,0.05133986]
[1718322367114,0.01945978,66835.0,66827.0,0.07215996]
[1718322367334,0.01945978,66835.0,66830.0,0.0711]
[1718322367549,0.01945978,66834.0,66831.0,0.023]
[1718322367767,0.01945978,66834.0,66831.0,0.04356321]
[1718322368704,0.09625978,66835.0,66831.0,0.04356321]
[1718322369151,0.09625978,66835.0,66831.0,0.05056321]
[1718322369356,0.01945978,66834.0,66831.0,0.05056321]
[1718322369985,0.01945978,66833.0,66831.0,0.05056321]
[1718322370194,0.01945978,66833.0,66831.0,0.04356321]
[1718322370401,0.01945978,66833.0,66831.0,0.04456321]
[1718322371054,0.01945978,66832.0,66831.0,0.04456321]
[1718322371467,0.0768,66835.0,66831.0,0.04456321]
[1718322371468,0.01945978,66834.0,66831.0,0.05056321]
[1718322371671,0.01945978,66833.0,66831.0,0.05056321]
[1718322371886,0.01945978,66832.0,66831.0,0.05056321]
[1718322372097,0.01945978,66832.0,66831.0,0.04356321]
[1718322372515,0.01945978,66832.0,66831.0,0.05056321]
[1718322373145,0.16255978,66832.0,66831.0,0.04356321]
[1718322373601,0.16255978,66832.0,66831.0,0.05056321]
[1718322374704,0.16255978,66832.0,66831.0,0.04356321]
[1718322375143,0.16255978,66832.0,66831.0,0.05056321]
[1718322375801,0.16255978,66832.0,66831.0,0.04356321]
[1718322375969,0.16255978,66832.0,66831.0,0.05056321]
[1718322383167,0.1431,66832.0,66831.0,0.05056321]
[1718322383399,0.01945978,66833.0,66831.0,0.05056321]
[1718322384921,0.01945978,66833.0,66831.0,0.04356321]
[1718322385362,0.01945978,66833.0,66831.0,0.05056321]
[1718322386015,0.01945978,66833.0,66831.0,0.04356321]
[1718322386243,0.01945978,66833.0,66831.0,0.05056321]
[1718322386460,0.01945978,66832.0,66831.0,0.05056321]
[1718322386831,0.01945978,66832.0,66831.0,0.04356321]
[1718322388247,0.01945978,66832.0,66831.0,0.1014558]
[1718322388545,0.01945978,66832.0,66831.0,0.1084558]
[1718322389074,0.01945978,66832.0,66831.0,0.1014558]
[1718322389391,0.01945978,66832.0,66831.0,0.1084558]
[1718322390003,0.01945978,66832.0,66831.0,0.1014558]
[1718322391378,0.01945978,66832.0,66831.0,0.1084558]
[1718322392455,0.01945978,66832.0,66831.0,0.1014558]
[1718322392858,0.01945978,66832.0,66831.0,0.1084558]
[1718322393711,0.01945978,66832.0,66831.0,0.10846193]
[1718322394581,0.01945978,66832.0,66831.0,0.10146193]
[1718322394794,0.01945978,66832.0,66831.0,0.10846193]
[1718322395228,0.01945978,66832.0,66831.0,0.18062189]
[1718322395555,0.01945978,66832.0,66831.0,0.17362189]
[1718322395963,0.01945978,66832.0,66831.0,0.18062189]
[1718322396464,0.01945978,66832.0,66831.0,0.17362189]
[1718322396896,0.01945978,66833.0,66831.0,0.17362189]
[1718322397100,0.01945978,66833.0,66832.0,0.05789872]
[1718322397260,0.01945978,66833.0,66832.0,0.08089872]
[1718322397464,0.01945978,66833.0,66832.0,0.10214694]
[1718322398081,0.02040578,66834.0,66832.0,0.10214694]
[1718322398289,0.000946,66834.0,66833.0,0.08089872]
[1718322398708,0.000946,66834.0,66833.0,0.31674489]
[1718322398916,0.000946,66834.0,66833.0,0.52228794]
[1718322401345,0.000946,66834.0,66833.0,0.56702519]
[1718322401554,0.000946,66834.0,66833.0,0.57402519]
[1718322401799,0.000946,66834.0,66833.0,0.52928794]
[1718322402372,0.000946,66834.0,66833.0,0.59639382]
[1718322403369,0.000946,66834.0,66833.0,0.73102967]
[1718322403579,0.000946,66834.0,66833.0,0.7982187]
[1718322404275,0.000946,66834.0,66833.0,0.73102967]
[1718322405465,0.000946,66834.0,66833.0,0.82066913]
[1718322406996,0.000946,66834.0,66833.0,0.73102967]
[1718322407376,0.000946,66834.0,66833.0,0.82066705]
[1718322408623,0.000946,66834.0,66833.0,0.74956705]
[1718322408843,0.000946,66834.0,66833.0,0.82066705]
[1718322409070,0.000946,66834.0,66833.0,0.82066475]
[1718322412635,0.000946,66834.0,66833.0,0.9448022]
[1718322413268,0.000946,66834.0,66833.0,0.85523716]
[1718322413496,0.000946,66834.0,66833.0,0.94488808]
[1718322414682,0.000946,66834.0,66833.0,0.94628376]
[1718322416278,0.000946,66834.0,66833.0,0.65108765]
[1718322416506,0.000946,66834.0,66833.0,0.86095171]
[1718322416693,0.000946,66834.0,66833.0,0.95060477]
[1718322417505,0.000946,66834.0,66833.0,0.86095171]
[1718322417905,0.000946,66834.0,66833.0,0.95060477]
[1718322420276,0.000946,66834.0,66833.0,0.88840477]
[1718322420707,0.000946,66834.0,66833.0,0.8307569]
[1718322421037,0.000946,66834.0,66833.0,0.88866601]
[1718322421250,0.000946,66834.0,66833.0,0.94866601]
[1718322421639,0.000946,66834.0,66833.0,0.85936964]
[1718322421882,0.000946,66834.0,66833.0,0.85900948]
[1718322422623,0.000946,66834.0,66833.0,0.85936964]
[1718322422835,0.000946,66834.0,66833.0,1.00368957]
[1718322423051,0.000946,66834.0,66833.0,1.15331557]
[1718322423721,0.000946,66834.0,66833.0,0.94986492]
[1718322423926,0.000946,66834.0,66833.0,1.25047936]
[1718322424711,0.000946,66834.0,66833.0,1.3849345]
[1718322425307,0.000946,66834.0,66833.0,1.25047936]
[1718322426708,0.000946,66834.0,66833.0,1.3849345]
[1718322427305,0.000946,66834.0,66833.0,1.17496223]
[1718322427509,0.000946,66834.0,66833.0,1.37185419]
[1718322427795,0.000946,66834.0,66833.0,1.23750726]
[1718322428602,0.000946,66834.0,66833.0,1.23333322]
[1718322428879,0.000946,66834.0,66833.0,1.39083322]
[1718322429108,0.000946,66834.0,66833.0,1.62517926]
[1718322429286,0.000946,66834.0,66833.0,1.52517926]
[1718322429567,0.000946,66834.0,66833.0,1.45407926]
[1718322429769,0.000946,66834.0,66833.0,1.52516338]
[1718322430172,0.000946,66834.0,66833.0,1.39083322]
[1718322431412,0.000946,66834.0,66833.0,1.49083322]
[1718322432284,0.000946,66834.0,66833.0,1.48777995]
[1718322432500,0.000946,66834.0,66833.0,1.38777995]
[1718322432713,0.000946,66834.0,66833.0,1.52203286]
[1718322433142,0.000946,66834.0,66833.0,1.53777995]
[1718322433360,0.000946,66834.0,66833.0,1.83703295]
[1718322433556,0.000946,66834.0,66833.0,1.87699938]
[1718322434115,0.000946,66834.0,66833.0,1.86999938]
[1718322434518,0.000946,66834.0,66833.0,1.87699938]
[1718322435073,0.000946,66834.0,66833.0,1.87499938]
[1718322435467,0.000946,66834.0,66833.0,1.86999938]
[1718322435819,0.000946,66834.0,66833.0,1.87999938]
[1718322436024,0.000946,66834.0,66833.0,1.89838141]
[1718322436226,0.000946,66834.0,66833.0,1.85841498]
[1718322436451,0.000946,66834.0,66833.0,1.86541498]
[1718322438056,0.000946,66834.0,66833.0,1.66852302]
[1718322438269,0.000946,66834.0,66833.0,1.85155948]
[1718322440380,0.000946,66834.0,66833.0,1.89152475]
[1718322441767,0.00093501,66840.0,66839.0,0.54827316]
[1718322441996,0.00093501,66840.0,66839.0,1.44516528]
[1718322442250,0.00093501,66840.0,66839.0,1.60033738]
[1718322442454,0.00093501,66840.0,66839.0,1.4662186]
[1718322442798,0.00093501,66840.0,66839.0,1.3662186]
[1718322442982,0.00093501,66840.0,66839.0,1.4732186]
[1718322443817,0.00093501,66840.0,66839.0,1.3732186]
[1718322444027,0.00093501,66840.0,66839.0,1.3802186]
[1718322445951,0.00093501,66840.0,66839.0,1.37636746]
[1718322448012,0.00093501,66840.0,66839.0,1.47636746]
[1718322450610,0.00093501,66840.0,66839.0,1.52636746]
[1718322451644,0.00093501,66840.0,66839.0,1.45526746]
[1718322451849,0.00093501,66840.0,66839.0,1.52636746]
[1718322452338,0.00093501,66840.0,66839.0,1.6157817]
[1718322452517,0.00093501,66840.0,66839.0,1.01485446]
[1718322452727,0.00093501,66840.0,66839.0,1.08595446]
[1718322452929,0.00093501,66840.0,66839.0,1.15302085]
[1718322453131,0.00093501,66840.0,66839.0,0.9633519]
[1718322453557,0.00093501,66840.0,66839.0,0.96316682]
[1718322454191,0.00093501,66840.0,66839.0,0.96280666]
[1718322454414,0.00093501,66840.0,66839.0,1.10107424]
[1718322454622,0.00093501,66840.0,66839.0,1.15867404]
[1718322456387,0.00093501,66840.0,66839.0,1.15831388]
[1718322456607,0.00093501,66840.0,66839.0,1.15867404]
[1718322457323,0.00093501,66840.0,66839.0,1.09159849]
[1718322457800,0.00093501,66840.0,66839.0,1.15832694]
[1718322458246,0.00093501,66840.0,66839.0,1.18067239]
[1718322458694,0.00093501,66840.0,66839.0,1.18103255]
[1718322459236,0.00093501,66840.0,66839.0,1.18067239]
[1718322459485,0.08013501,66840.0,66839.0,1.03399869]
[1718322459720,0.08013501,66840.0,66839.0,1.03399331]
[1718322460919,0.14643501,66840.0,66839.0,0.58993914]
[1718322461172,0.14643501,66840.0,66839.0,0.69880119]
[1718322461388,0.14643501,66840.0,66839.0,0.49341878]
[1718322462077,0.14643501,66840.0,66839.0,0.56451878]
[1718322462313,0.14643501,66840.0,66839.0,0.56051762]
[1718322462541,0.14643501,66840.0,66839.0,0.33338232]
[1718322464356,0.14643501,66840.0,66839.0,0.37813658]
[1718322465175,0.14643501,66840.0,66839.0,0.37813901]
[1718322467112,0.14643501,66840.0,66839.0,0.33338232]
[1718322469365,0.14643501,66840.0,66839.0,0.40051736]
[1718322470566,0.14643501,66840.0,66839.0,0.59927076]
[1718322471224,0.14643501,66840.0,66839.0,0.59928992]
[1718322471478,0.14643501,66840.0,66839.0,0.53213572]
[1718322471889,0.14643501,66840.0,66839.0,0.59929006]
[1718322472108,0.14643501,66840.0,66839.0,0.59890703]
[1718322472543,0.14643501,66840.0,66839.0,0.59882145]
[1718322473579,0.14643501,66840.0,66839.0,0.59877781]
[1718322473784,0.08013501,66840.0,66839.0,0.59877781]
[1718322475774,0.08013501,66840.0,66839.0,0.4003768]
[1718322475983,0.08013501,66840.0,66839.0,0.40035293]
[1718322478994,0.00093501,66840.0,66839.0,0.40035293]
[1718322480160,0.00093501,66840.0,66839.0,0.52033191]
[1718322481196,0.00093501,66840.0,66839.0,0.665012]
[1718322481410,0.00093501,66840.0,66839.0,0.79619534]
[1718322481619,0.00093501,66840.0,66839.0,0.87489534]
[1718322481833,0.00093501,66840.0,66839.0,0.98676817]
[1718322482268,0.00093501,66840.0,66839.0,0.9848148]
[1718322482720,0.00093501,66840.0,66839.0,0.87294197]
[1718322483141,0.00093501,66840.0,66839.0,0.96236606]
[1718322483347,0.00093501,66840.0,66839.0,1.03346606]
[1718322483778,0.00093501,66840.0,66839.0,1.03382622]
[1718322483987,0.00093501,66840.0,66839.0,0.96236606]
[1718322484202,0.00093501,66840.0,66839.0,1.03346606]
[1718322485437,0.00093501,66840.0,66839.0,1.03193857]
[1718322486794,0.00093501,66840.0,66839.0,1.02493857]
[1718322487050,0.14203501,66840.0,66839.0,0.74067252]
[1718322487263,0.14203501,66840.0,66839.0,0.86501174]
[1718322487708,0.14203501,66840.0,66839.0,0.93611174]
[1718322488572,0.14203501,66840.0,66839.0,0.94511174]
[1718322488800,0.02039479,66840.0,66839.0,0.72769181]
[1718322489021,0.16619479,66840.0,66839.0,0.36760247]
[1718322489227,0.16619479,66840.0,66839.0,0.32986598]
[1718322489463,0.16619479,66840.0,66839.0,0.32286598]
[1718322489680,0.16619479,66840.0,66839.0,0.32986598]
[1718322489883,0.16619479,66840.0,66839.0,0.37460247]
[1718322490100,0.16619479,66840.0,66839.0,0.32986598]
[1718322491165,0.16619479,66840.0,66839.0,0.27263293]
[1718322491367,0.16619479,66840.0,66839.0,0.33010609]
[1718322492399,0.14673501,66840.0,66839.0,0.33010609]
[1718322492606,0.16619479,66840.0,66839.0,0.37484258]
[1718322493061,0.16619479,66840.0,66839.0,0.33010609]
[1718322493259,0.16619479,66840.0,66839.0,0.37484258]
[1718322495191,0.16619479,66840.0,66839.0,0.33010609]
[1718322495439,0.14673501,66840.0,66839.0,0.33010609]
[1718322495628,0.16619479,66840.0,66839.0,0.33010609]
[1718322495834,0.16619479,66840.0,66839.0,0.33005115]
[1718322496978,0.14673501,66840.0,66839.0,0.33005115]
[1718322497203,0.16619479,66840.0,66839.0,0.39715588]
[1718322497808,0.16619479,66840.0,66839.0,0.33005115]
[1718322498060,0.14673501,66840.0,66839.0,0.39715588]
[1718322498267,0.14673501,66840.0,66839.0,0.53115401]
[1718322501153,0.14673501,66840.0,66839.0,0.59832357]
[1718322505743,0.14673501,66840.0,66839.0,0.59832095]
[1718322506819,0.16619479,66840.0,66839.0,0.59832095]
[1718322507571,0.16619479,66840.0,66839.0,0.33004853]
[1718322507791,0.16619479,66840.0,66839.0,0.59946894]
[1718322507991,0.14673501,66840.0,66839.0,0.59946894]
[1718322508314,0.14673501,66840.0,66839.0,0.5991644]
[1718322509681,0.14673501,66840.0,66839.0,0.39721809]
[1718322509887,0.14673501,66840.0,66839.0,0.59959355]
[1718322511082,0.14673501,66840.0,66839.0,0.59918987]
[1718322511859,0.14673501,66840.0,66839.0,0.53202031]
[1718322512302,0.14673501,66840.0,66839.0,0.59918623]
[1718322512699,0.14673501,66840.0,66839.0,0.53202031]
[1718322512902,0.14673501,66840.0,66839.0,0.59919087]
[1718322513350,0.14673501,66840.0,66839.0,0.59919689]
[1718322513937,0.14673501,66840.0,66839.0,0.53202633]
[1718322514148,0.14673501,66840.0,66839.0,0.59919622]
[1718322514585,0.14673501,66840.0,66839.0,0.53202633]
[1718322514986,0.14673501,66840.0,66839.0,0.59919137]
[1718322515950,0.14673501,66840.0,66839.0,0.53202633]
[1718322516121,0.08333501,66840.0,66839.0,0.53202633]
[1718322516325,0.08333501,66840.0,66839.0,0.59919014]
[1718322516548,0.08333501,66840.0,66839.0,0.59919324]
[1718322516754,0.08333501,66840.0,66839.0,0.53202633]
[1718322516973,0.08333501,66840.0,66839.0,0.5991914]
[1718322518432,0.08333501,66840.0,66839.0,0.72546853]
[1718322518763,0.08333501,66840.0,66839.0,0.65830346]
[1718322519320,0.00093501,66840.0,66839.0,0.65830346]
[1718322519526,0.00093501,66840.0,66839.0,0.72547085]
[1718322519733,0.00093501,66840.0,66839.0,0.65830346]
[1718322520546,0.00093501,66840.0,66839.0,0.72547158]
[1718322520953,0.00093501,66840.0,66839.0,0.65830346]
[1718322521943,0.00093501,66840.0,66839.0,0.47460471]
[1718322522183,0.00093501,66840.0,66839.0,0.60324947]
[1718322522623,0.00093501,66840.0,66839.0,0.2802744]
[1718322523928,0.00093501,66840.0,66839.0,0.33768516]
[1718322524135,0.02039479,66840.0,66839.0,0.33768516]
[1718322524275,0.16499479,66840.0,66839.0,0.2090404]
[1718322524484,0.16499479,66840.0,66839.0,0.15162964]
[1718322525102,0.16499479,66840.0,66839.0,0.33317693]
[1718322525470,0.16499479,66840.0,66839.0,0.21017693]
[1718322525668,0.16499479,66840.0,66839.0,0.15276448]
[1718322525918,0.16499479,66840.0,66839.0,0.02862964]
[1718322526246,0.16499479,66840.0,66839.0,0.014]
[1718322526421,0.16499479,66840.0,66839.0,0.007]
[1718322526604,0.16499479,66840.0,66834.0,0.00086]
[1718322526605,0.01945978,66835.0,66834.0,0.00086]
[1718322526803,0.16455978,66835.0,66834.0,0.1348479]
[1718322526965,0.16455978,66835.0,66834.0,0.2578479]
[1718322528640,0.16555978,66835.0,66834.0,0.2578479]
[1718322529484,0.16555978,66835.0,66834.0,0.2648479]
[1718322529654,0.16455978,66835.0,66834.0,0.2648479]
[1718322530187,0.16555978,66835.0,66834.0,0.25883756]
[1718322530952,0.16555978,66835.0,66834.0,0.26583756]
[1718322531556,0.16455978,66835.0,66834.0,0.26483756]
[1718322532386,0.16455978,66835.0,66834.0,0.25783756]
[1718322532837,0.16455978,66835.0,66834.0,0.26483756]
[1718322533003,0.16555978,66835.0,66834.0,0.26483756]
[1718322533245,0.1451,66835.0,66834.0,0.26483756]
[1718322533443,0.1451,66835.0,66834.0,0.25783756]
[1718322533444,0.16455978,66835.0,66834.0,0.25783756]
[1718322533796,0.1461,66835.0,66834.0,0.26583756]
[1718322533998,0.09965978,66835.0,66834.0,0.31053705]
[1718322534198,0.09865978,66835.0,66834.0,0.30253705]
[1718322534584,0.09965978,66835.0,66834.0,0.30253705]
[1718322534983,0.09965978,66835.0,66834.0,0.25777004]
[1718322535635,0.09965978,66835.0,66834.0,0.26477004]
[1718322535795,0.09865978,66835.0,66834.0,0.26477004]
[1718322536019,0.09865978,66835.0,66834.0,0.25777004]
[1718322536220,0.09965978,66835.0,66834.0,0.25877004]
[1718322536426,0.09965978,66835.0,66834.0,0.26477004]